fUSD/lending_fUSD_20250602
["ID","MTS","AMOUNT","RATE_DAILY","PERIOD"]
[363813231,1748883409719,21100.69,0.00018986,2]
[363813232,1748883413231,200.0,0.00018986,2]
[363813233,1748883420858,175.0,0.0004109,120]
[363813234,1748883423570,20000.0,0.00039716,120]
[363813235,1748883428626,150.0,0.00023,30]
[363813236,1748883447134,150.0,0.0003971,120]
[363813237,1748883451264,150.0,0.00040264,120]
[363813238,1748883454122,1000.0,0.0004109,120]
[363813239,1748883465410,200.0,0.0004109,120]
[363813240,1748883484368,200.0,0.0003971,120]
[363813241,1748883492806,563.20294539,0.00040658,120]
[363813242,1748883493020,150.0,0.00023,30]
[363813243,1748883495281,2500.0,0.00041096,120]
[363813244,1748883507642,200.0,0.0004109,120]
[363813246,1748883570612,150.0,0.00038545,120]
[363813247,1748883572932,1000.0,0.00039716,120]
[363813248,1748883573448,1000.0,0.00039716,120]
[363813249,1748883573983,1000.0,0.00039716,120]
[363813250,1748883574520,1000.0,0.00039716,120]
[363813251,1748883575046,519.84317714,0.00039716,120]
[363813252,1748883636478,150.0,0.00018967,2]
[363813253,1748883644310,1376.08,0.00041095,120]
[363813254,1748883647458,2094.04,0.00041095,120]
[363813255,1748883668708,5000.0,0.0004,120]
[363813256,1748883668818,272.05229456,0.00023,30]
[363813257,1748883675757,619.0,0.00023,30]
[363813258,1748883682043,500.0,0.00023,30]
[363813259,1748883690493,150.0,0.00039126,120]
[363813260,1748883693261,155.41398979,0.00018986,2]
[363813261,1748883713535,250.0,0.00018926,2]
[363813263,1748883732248,150.0,0.00023,30]
[363813264,1748883732360,1716.05,0.000229,31]
[363813265,1748883732451,1716.05,0.000229,31]
[363813266,1748883732501,1716.05,0.000229,31]
[363813267,1748883732549,1716.05,0.000229,31]
[363813268,1748883732588,1716.05,0.000229,31]
[363813269,1748883732626,1716.05,0.000229,31]
[363813270,1748883732892,1716.05,0.000229,31]
[363813271,1748883732943,1716.05,0.000229,31]
[363813272,1748883732989,1716.05,0.000229,31]
[363813273,1748883733040,1716.05,0.000229,31]
[363813274,1748883733082,1716.05,0.000229,31]
[363813275,1748883733127,1716.05,0.000229,31]
[363813276,1748883733173,1716.05,0.000229,31]
[363813277,1748883733221,1716.05,0.000229,31]
[363813278,1748883733269,1716.05,0.000229,31]
[363813279,1748883733312,1716.05,0.000229,31]
[363813280,1748883737956,1104.01,0.00018916,2]
[363813281,1748883750721,150.0,0.00039517,120]
[363813282,1748883775125,200.0,0.00041096,120]
[363813283,1748883791995,167.43,0.00018887,2]
[363813284,1748883810757,150.0,0.00039875,120]
[363813285,1748883821567,156.06,0.00018887,2]
[363813286,1748883846509,168.95,0.0001511,2]
[363813287,1748883858735,185.04,0.0001886,2]
[363813288,1748883871039,150.0,0.00038966,120]
[363813289,1748883874644,23900.0,0.0001886,2]
[363813290,1748883890937,1318.74,0.00041095,120]
[363813291,1748883895156,2006.79,0.00041095,120]
[363813292,1748883904894,1000.0,0.00018914,2]
[363813293,1748883912619,204.0,0.00018051,2]
[363813294,1748883928508,1500.0,0.00041096,120]
[363813295,1748883931858,150.0,0.00039782,120]
[363813296,1748883942239,1769.096875,0.00041096,120]
[363813300,1748883972648,150.0,0.00023,30]
[363813307,1748883981330,500.0,0.00023,30]
[363813309,1748883983673,150.0,0.00023,30]
[363813312,1748883987430,150.0,0.00023,30]
[363813315,1748883990509,150.0,0.00038963,120]
[363813316,1748883991807,150.0,0.00023,30]
[363813319,1748883995013,150.0,0.00023,30]
[363813320,1748883997021,150.0,0.00023,30]
[363813323,1748884004529,150.0,0.00023,30]
[363813331,1748884016851,593.0,0.00023,30]
[363813334,1748884024162,227.0,0.00023,30]
[363813337,1748884025830,500.0,0.00023,30]
[363813363,1748884091574,203.0,0.00018051,2]
[363813369,1748884106199,1368.0,0.00041,120]
[363813370,1748884107408,1368.0,0.00041,120]
[363813371,1748884107987,1368.0,0.00041,120]
[363813372,1748884108833,1368.0,0.00041,120]
[363813373,1748884109102,1368.0,0.00041,120]
[363813375,1748884110271,1368.0,0.00041,120]
[363813376,1748884110731,150.0,0.00040227,120]
[363813377,1748884110994,1368.0,0.00041,120]
[363813378,1748884111707,1368.0,0.00041,120]
[363813379,1748884112346,1368.0,0.00041,120]
[363813380,1748884113010,1368.0,0.00041,120]
[363813383,1748884120522,1263.8,0.00041095,120]
[363813392,1748884142241,500.0,0.00041,120]
[363813393,1748884142496,1923.17,0.00041095,120]
[363813394,1748884164140,737.18476,0.0004109,120]
[363813395,1748884170913,150.0,0.00039894,120]
[363813397,1748884178000,474.11,0.00018869,2]
[363813398,1748884192884,769.21,0.0001695,2]
[363813402,1748884223446,200.0,0.00018843,2]
[363813403,1748884230739,150.0,0.00039388,120]
[363813407,1748884231919,-250.0,0.00019094,2]
[363813408,1748884231929,-400.0,0.00019094,2]
[363813409,1748884231938,-498.38499209,0.00019109,2]
[363813410,1748884231950,-1.61500791,0.00019109,2]
[363813411,1748884231959,-269.79942009,0.0001913,2]
[363813412,1748884231971,-130.20057991,0.0001913,2]
[363813413,1748884231979,-165.60624009,0.00019165,2]
[363813414,1748884231990,-1034.39375991,0.00019165,2]
[363813415,1748884232000,-300.0,0.00019166,2]
[363813416,1748884232010,-300.0,0.00019166,2]
[363813417,1748884232021,-239.99628088,0.00019166,2]
[363813418,1748884232030,-668.65185757,0.00019166,2]
[363813419,1748884232041,-1115.157653,0.00019166,2]
[363813420,1748884232050,-151.0,0.00019166,2]
[363813421,1748884232059,-207.4,0.00019166,2]
[363813422,1748884232068,-2539.42130417,0.00019168,2]
[363813423,1748884232079,-684.71908266,0.00019168,2]
[363813424,1748884232091,-1409.64450223,0.00019168,2]
[363813425,1748884232103,-321.29154664,0.00019168,2]
[363813426,1748884232115,-2249.11641722,0.00019168,2]
[363813427,1748884232130,-1074.65562518,0.00019168,2]
[363813428,1748884232140,-427.74,0.00019178,2]
[363813429,1748884232149,-466.01,0.00019178,2]
[363813430,1748884232157,-323.37,0.00019178,2]
[363813431,1748884232166,-420.0,0.00019178,2]
[363813432,1748884232176,-436.84,0.00019178,2]
[363813433,1748884232185,-206.19754355,0.00019178,2]
[363813434,1748884232194,-210.61,0.00019178,2]
[363813435,1748884232204,-420.0,0.00019178,2]
[363813436,1748884232214,-420.0,0.00019178,2]
[363813437,1748884232224,-472.74406492,0.00019178,2]
[363813438,1748884232235,-24.8459877,0.00019178,2]
[363813439,1748884232246,-420.0,0.00019178,2]
[363813440,1748884232259,-282.8601302,0.00019178,2]
[363813441,1748884232271,-137.1398698,0.00019178,2]
[363813442,1748884232280,-420.0,0.00019178,2]
[363813443,1748884232290,-420.0,0.00019178,2]
[363813444,1748884232299,-303.72826127,0.00019178,2]
[363813445,1748884232312,-116.27173873,0.00019178,2]
[363813446,1748884232321,-420.0,0.00019178,2]
[363813447,1748884232333,-420.0,0.00019178,2]
[363813448,1748884232343,-420.0,0.00019178,2]
[363813450,1748884232352,-420.0,0.00019178,2]
[363813451,1748884232362,-420.0,0.00019178,2]
[363813454,1748884232372,-425.62,0.00019178,2]
[363813456,1748884232382,-313.13,0.00019178,2]
[363813458,1748884232391,-114.62934147,0.00019178,2]
[363813461,1748884232413,-267.59430731,0.00019178,2]
[363813463,1748884232424,-37.77635122,0.00019178,2]
[363813465,1748884232433,-215.05189282,0.00019178,2]
[363813467,1748884232445,-662.01299768,0.00019178,2]
[363813469,1748884232456,-1340.40069152,0.00019178,2]
[363813474,1748884232469,-1035.44441798,0.00019178,2]
[363813477,1748884232480,-473.99,0.00019178,2]
[363813480,1748884232489,-569.76,0.00019178,2]
[363813483,1748884232499,-420.0,0.00019178,2]
[363813486,1748884232508,-893.60558202,0.00019178,2]
[363813518,1748884232753,-690.65441798,0.00019178,2]
[363813520,1748884232763,-341.85,0.00019178,2]
[363813523,1748884232776,-82.07677068,0.00019178,2]
[363813525,1748884232788,-337.92322932,0.00019178,2]
[363813527,1748884232798,-40.78080492,0.00019178,2]
[363813529,1748884232809,-379.21919508,0.00019178,2]
[363813532,1748884232819,-218.12153786,0.00019178,2]
[363813534,1748884232831,-201.87846214,0.00019178,2]
[363813536,1748884232840,-213.4417988,0.00019178,2]
[363813538,1748884232851,-206.5582012,0.00019178,2]
[363813540,1748884232861,-1568.56,0.00019178,2]
[363813542,1748884232870,-420.0,0.00019178,2]
[363813544,1748884232879,-351.320001,0.00019178,2]
[363813546,1748884232889,-420.0,0.00019178,2]
[363813548,1748884232899,-420.0,0.00019178,2]
[363813550,1748884232909,-420.0,0.00019178,2]
[363813552,1748884232918,-420.0,0.00019178,2]
[363813554,1748884232927,-275.1477978,0.00019178,2]
[363813915,1748884237788,-144.8522022,0.00019178,2]
[363813916,1748884237798,-299.65,0.00019178,2]
[363813917,1748884237808,-2079.58,0.00019178,2]
[363813918,1748884237818,-171.2008811,0.00019178,2]
[363813919,1748884237828,-420.0,0.00019178,2]
[363813920,1748884237837,-420.0,0.00019178,2]
[363813921,1748884237847,-372.9670167,0.00019178,2]
[363813922,1748884237946,-138.0429833,0.00019178,2]
[363813923,1748884237956,-361.9570167,0.00019178,2]
[363813924,1748884238052,-58.0429833,0.00019178,2]
[363813925,1748884238061,-420.0,0.00019178,2]
[363813926,1748884238071,-420.0,0.00019178,2]
[363813927,1748884238080,-420.0,0.00019178,2]
[363813928,1748884238090,-36.33639082,0.00019178,2]
[363813929,1748884238105,-383.66360918,0.00019178,2]
[363813930,1748884238116,-761.52,0.00019178,2]
[363813931,1748884238125,-787.3,0.00019178,2]
[363813932,1748884238136,-420.0,0.00019178,2]
[363813933,1748884238146,-420.0,0.00019178,2]
[363813934,1748884238156,-420.0,0.00019178,2]
[363813935,1748884238166,-596.71,0.00019178,2]
[363813936,1748884238175,-420.0,0.00019178,2]
[363813937,1748884238186,-1196.34,0.00019178,2]
[363813938,1748884238199,-438.9,0.00019178,2]
[363813939,1748884238209,-420.0,0.00019178,2]
[363813940,1748884238219,-851.45,0.00019178,2]
[363813941,1748884238230,-753.76,0.00019178,2]
[363813942,1748884238239,-506.95,0.00019178,2]
[363813943,1748884238250,-420.0,0.00019178,2]
[363813944,1748884238259,-420.0,0.00019178,2]
[363813945,1748884238269,-420.0,0.00019178,2]
[363813946,1748884238278,-420.0,0.00019178,2]
[363813947,1748884238287,-454.24,0.00019178,2]
[363813948,1748884238297,-769.21,0.00019214,2]
[363813949,1748884238307,-466.01,0.00019315,2]
[363813950,1748884238317,-400.15,0.00019315,2]
[363813951,1748884238326,-425.62,0.00019315,2]
[363813959,1748884238543,-420.0,0.00019315,2]
[363813960,1748884238554,-3252.91,0.00019315,2]
[363813961,1748884238563,-569.76,0.00019315,2]
[363813962,1748884238573,-420.0,0.00019315,2]
[363813963,1748884238582,-765.50639082,0.00019315,2]
[363813965,1748884238593,-611.70497818,0.00019315,2]
[363813968,1748884238605,-207.048631,0.00019315,2]
[363813970,1748884238615,-420.0,0.00019315,2]
[363813972,1748884238624,-420.0,0.00019315,2]
[363813973,1748884238633,-420.0,0.00019315,2]
[363813975,1748884238646,-165.14,0.00019315,2]
[363813977,1748884238658,-1568.56,0.00019315,2]
[363813979,1748884238669,-326.73,0.00019315,2]
[363813981,1748884238679,-420.0,0.00019315,2]
[363813983,1748884238689,-420.0,0.00019315,2]
[363813986,1748884238699,-420.0,0.00019315,2]
[363813988,1748884238710,-420.0,0.00019315,2]
[363813990,1748884238720,-420.0,0.00019315,2]
[363813991,1748884238730,-2079.58,0.00019315,2]
[363813993,1748884238739,-420.0,0.00019315,2]
[363813995,1748884238748,-420.0,0.00019315,2]
[363813997,1748884238757,-420.0,0.00019315,2]
[363813999,1748884238768,-420.0,0.00019315,2]
[363814002,1748884238779,-420.0,0.00019315,2]
[363814003,1748884238788,-420.0,0.00019315,2]
[363814005,1748884238798,-761.52,0.00019315,2]
[363814007,1748884238808,-787.3,0.00019315,2]
[363814009,1748884238818,-380.68249849,0.00019315,2]
[363814011,1748884238828,-420.0,0.00019315,2]
[363814013,1748884238838,-420.0,0.00019315,2]
[363814015,1748884238848,-596.71,0.00019315,2]
[363814017,1748884238858,-420.0,0.00019315,2]
[363814019,1748884238868,-1196.34,0.00019315,2]
[363814021,1748884238879,-438.9,0.00019315,2]
[363814023,1748884238888,-420.0,0.00019315,2]
[363814025,1748884238897,-851.45,0.00019315,2]
[363814027,1748884238909,-753.76,0.00019315,2]
[363814029,1748884238918,-506.95,0.00019315,2]
[363814031,1748884238927,-420.0,0.00019315,2]
[363814033,1748884238937,-420.0,0.00019315,2]
[363814035,1748884238948,-420.0,0.00019315,2]
[363814037,1748884238958,-420.0,0.00019315,2]
[363814039,1748884238968,-454.24,0.00019315,2]
[363814040,1748884238977,-466.01,0.00019452,2]
[363814042,1748884238987,-425.62,0.00019452,2]
[363814044,1748884238996,-263.66939585,0.00019452,2]
[363814046,1748884239005,-2334.56860519,0.00019452,2]
[363814130,1748884239948,-569.76,0.00019452,2]
[363814132,1748884239958,-420.0,0.00019452,2]
[363814134,1748884239968,-1584.26,0.00019452,2]
[363814136,1748884239978,-420.0,0.00019452,2]
[363814138,1748884239987,-420.0,0.00019452,2]
[363814140,1748884239996,-1568.56,0.00019452,2]
[363814142,1748884240006,-420.0,0.00019452,2]
[363814144,1748884240015,-420.0,0.00019452,2]
[363814146,1748884240024,-420.0,0.00019452,2]
[363814148,1748884240034,-420.0,0.00019452,2]
[363814150,1748884240043,-420.0,0.00019452,2]
[363814152,1748884240053,-2079.58,0.00019452,2]
[363814153,1748884240062,-420.0,0.00019452,2]
[363814155,1748884240071,-420.0,0.00019452,2]
[363814157,1748884240080,-420.0,0.00019452,2]
[363814159,1748884240090,-420.0,0.00019452,2]
[363814161,1748884240099,-420.0,0.00019452,2]
[363814163,1748884240109,-420.0,0.00019452,2]
[363814165,1748884240119,-761.52,0.00019452,2]
[363814168,1748884240128,-787.3,0.00019452,2]
[363814170,1748884240139,-420.0,0.00019452,2]
[363814172,1748884240148,-420.0,0.00019452,2]
[363814174,1748884240159,-596.71,0.00019452,2]
[363814175,1748884240169,-420.0,0.00019452,2]
[363814177,1748884240179,-1196.34,0.00019452,2]
[363814179,1748884240188,-438.9,0.00019452,2]
[363814181,1748884240197,-420.0,0.00019452,2]
[363814184,1748884240210,-851.45,0.00019452,2]
[363814186,1748884240220,-753.76,0.00019452,2]
[363814188,1748884240229,-506.95,0.00019452,2]
[363814190,1748884240238,-420.0,0.00019452,2]
[363814192,1748884240248,-420.0,0.00019452,2]
[363814194,1748884240258,-420.0,0.00019452,2]
[363814196,1748884240270,-420.0,0.00019452,2]
[363814198,1748884240279,-454.24,0.00019452,2]
[363814200,1748884240289,-168.99,0.00019454,2]
[363814202,1748884240298,-425.62,0.00019589,2]
[363814204,1748884240308,-569.76,0.00019589,2]
[363814206,1748884240317,-420.0,0.00019589,2]
[363814208,1748884240326,-1584.26,0.00019589,2]
[363814210,1748884240336,-420.0,0.00019589,2]
[363814212,1748884240345,-420.0,0.00019589,2]
[363814214,1748884240355,-1568.56,0.00019589,2]
[363814215,1748884240364,-420.0,0.00019589,2]
[363814218,1748884240374,-420.0,0.00019589,2]
[363814220,1748884240384,-420.0,0.00019589,2]
[363814222,1748884240393,-420.0,0.00019589,2]
[363814224,1748884240403,-364.59,0.00019589,2]
[363814225,1748884240413,-2079.58,0.00019589,2]
[363814227,1748884240422,-420.0,0.00019589,2]
[363814229,1748884240431,-420.0,0.00019589,2]
[363814231,1748884240441,-420.0,0.00019589,2]
[363814233,1748884240451,-420.0,0.00019589,2]
[363814235,1748884240460,-420.0,0.00019589,2]
[363814237,1748884240470,-420.0,0.00019589,2]
[363814240,1748884240480,-761.52,0.00019589,2]
[363814242,1748884240492,-787.3,0.00019589,2]
[363814244,1748884240502,-420.0,0.00019589,2]
[363814245,1748884240511,-420.0,0.00019589,2]
[363814247,1748884240521,-596.71,0.00019589,2]
[363814250,1748884240531,-420.0,0.00019589,2]
[363814252,1748884240544,-1196.34,0.00019589,2]
[363814254,1748884240554,-438.9,0.00019589,2]
[363814256,1748884240564,-420.0,0.00019589,2]
[363814258,1748884240573,-851.45,0.00019589,2]
[363814260,1748884240583,-753.76,0.00019589,2]
[363814262,1748884240592,-506.95,0.00019589,2]
[363814263,1748884240601,-167.39,0.00019589,2]
[363814265,1748884240611,-420.0,0.00019589,2]
[363814267,1748884240620,-420.0,0.00019589,2]
[363814269,1748884240631,-420.0,0.00019589,2]
[363814271,1748884240641,-454.24,0.00019589,2]
[363814273,1748884240651,-2870.73615974,0.00019626,2]
[363814275,1748884240662,-400.0,0.000197,7]
[363814277,1748884240672,-425.62,0.00019726,2]
[363814279,1748884240682,-569.76,0.00019726,2]
[363814281,1748884240690,-420.0,0.00019726,2]
[363814283,1748884240699,-1584.26,0.00019726,2]
[363814285,1748884240711,-420.0,0.00019726,2]
[363814287,1748884240720,-407.20377934,0.00019726,2]
[363814289,1748884240730,-1568.56,0.00019726,2]
[363814291,1748884240739,-420.0,0.00019726,2]
[363814293,1748884240749,-420.0,0.00019726,2]
[363814295,1748884240759,-420.0,0.00019726,2]
[363814297,1748884240768,-420.0,0.00019726,2]
[363814299,1748884240778,-2079.58,0.00019726,2]
[363814301,1748884240787,-165.47893071,0.00019726,2]
[363814303,1748884240797,-420.0,0.00019726,2]
[363814305,1748884240807,-420.0,0.00019726,2]
[363814307,1748884240817,-420.0,0.00019726,2]
[363814309,1748884240827,-420.0,0.00019726,2]
[363814311,1748884240837,-420.0,0.00019726,2]
[363814313,1748884240846,-761.52,0.00019726,2]
[363814315,1748884240856,-787.3,0.00019726,2]
[363814317,1748884240867,-420.0,0.00019726,2]
[363814319,1748884240877,-420.0,0.00019726,2]
[363814322,1748884240887,-596.71,0.00019726,2]
[363814324,1748884240897,-420.0,0.00019726,2]
[363814326,1748884240908,-1196.34,0.00019726,2]
[363814328,1748884240918,-438.9,0.00019726,2]
[363814330,1748884240927,-420.0,0.00019726,2]
[363814332,1748884240937,-851.45,0.00019726,2]
[363814334,1748884240946,-753.76,0.00019726,2]
[363814336,1748884240955,-506.95,0.00019726,2]
[363814338,1748884240964,-420.0,0.00019726,2]
[363814340,1748884240974,-524.46,0.00019726,2]
[363814342,1748884240983,-420.0,0.00019726,2]
[363814344,1748884240992,-454.24,0.00019726,2]
[363814346,1748884241003,-916.609769,0.00019733,2]
[363814348,1748884241012,-1480.1127,0.00019763,2]
[363814350,1748884241022,-968.88092615,0.0001978,2]
[363814352,1748884241032,-800.0,0.000198,7]
[363814354,1748884241041,-425.62,0.00019863,2]
[363814356,1748884241051,-569.76,0.00019863,2]
[363814358,1748884241060,-420.0,0.00019863,2]
[363814360,1748884241069,-1584.26,0.00019863,2]
[363814362,1748884241079,-420.0,0.00019863,2]
[363814364,1748884241088,-1568.56,0.00019863,2]
[363814366,1748884241097,-557.96564456,0.00019863,2]
[363814368,1748884241107,-139.78676208,0.00019863,2]
[363814370,1748884241120,-280.21323792,0.00019863,2]
[363814372,1748884241129,-420.0,0.00019863,2]
[363814374,1748884241139,-420.0,0.00019863,2]
[363814376,1748884241149,-2079.58,0.00019863,2]
[363814378,1748884241159,-420.0,0.00019863,2]
[363814380,1748884241169,-202.90556228,0.00019863,2]
[363814382,1748884241180,-217.09443772,0.00019863,2]
[363814384,1748884241189,-420.0,0.00019863,2]
[363814386,1748884241199,-420.0,0.00019863,2]
[363814388,1748884241208,-420.0,0.00019863,2]
[363814391,1748884241219,-761.52,0.00019863,2]
[363814393,1748884241229,-787.3,0.00019863,2]
[363814394,1748884241238,-174.34636333,0.00019863,2]
[363814398,1748884241258,-420.0,0.00019178,2]
[363814400,1748884241268,-245.65363667,0.00019863,2]
[363814402,1748884241278,-420.0,0.00019863,2]
[363814404,1748884241287,-596.71,0.00019863,2]
[363814406,1748884241296,-420.0,0.00019863,2]
[363814408,1748884241306,-453.00412782,0.00019863,2]
[363814410,1748884241321,-743.33587218,0.00019863,2]
[363814412,1748884241330,-438.9,0.00019863,2]
[363814413,1748884241340,-420.0,0.00019863,2]
[363814415,1748884241350,-851.45,0.00019863,2]
[363814417,1748884241359,-753.76,0.00019863,2]
[363814418,1748884241368,-506.95,0.00019863,2]
[363814420,1748884241377,-420.0,0.00019863,2]
[363814422,1748884241387,-420.0,0.00019863,2]
[363814424,1748884241396,-454.24,0.00019863,2]
[363814426,1748884241405,-413.94,0.00019897,2]
[363814427,1748884241414,-150.0,0.00019897,2]
[363814429,1748884241424,-170.43,0.00019897,2]
[363814431,1748884241433,-1161.73,0.00019897,2]
[363814433,1748884241443,-1161.73,0.00019897,2]
[363814435,1748884241454,-340.59,0.00019897,2]
[363814436,1748884241463,-1160.97,0.00019897,2]
[363814438,1748884241473,-1000.0,0.000199,2]
[363814440,1748884241483,-360.31277644,0.000199,2]
[363814442,1748884241493,-3761.8255598,0.000199,2]
[363814444,1748884241502,-1200.0,0.000199,7]
[363814445,1748884241511,-5825.3582177,0.000199,2]
[363814447,1748884241521,-4153.63297649,0.00019941,2]
[363814449,1748884241533,-846.36702351,0.00019941,2]
[363814451,1748884241543,-943.0,0.00019951,2]
[363814453,1748884241552,-801.0,0.00019951,2]
[363814454,1748884241562,-635.0,0.00019951,2]
[363814455,1748884241571,-121.63779084,0.00019951,2]
[363814457,1748884242374,385648.18465716,0.00041096,120]
[363814463,1748884243032,-645.425,0.00019178,2]
[363814464,1748884243160,-304.37577427,0.00019178,2]
[363814465,1748884243172,-564.91500818,0.00019178,2]
[363814466,1748884243184,-659.55599547,0.00019178,2]
[363814467,1748884243204,-710.28822208,0.00019178,2]
[363814468,1748884243214,-401.26174463,0.00019315,2]
[363814487,1748884245940,-427.32,0.00019178,2]
[363814488,1748884245951,-18.73825537,0.00019315,2]
[363814489,1748884245961,-2884.56,0.00019315,2]
[363814490,1748884245971,-427.32,0.00019315,2]
[363814491,1748884245981,-2884.56,0.00019452,2]
[363814492,1748884245990,-420.0,0.00019452,2]
[363814493,1748884246001,-685.42567387,0.00019589,2]
[363814494,1748884246047,-427.32,0.00019452,2]
[363814495,1748884246057,-2199.13432613,0.00019589,2]
[363814496,1748884246066,-420.0,0.00019589,2]
[363814497,1748884246075,-421.76554278,0.00019726,2]
[363814498,1748884246100,-1175.998,0.00019726,2]
[363814499,1748884246112,-610.04783204,0.00019726,2]
[363814500,1748884246209,-676.74862518,0.00019726,2]
[363814501,1748884246219,-420.0,0.00019726,2]
[363814502,1748884246229,-2884.56,0.00019863,2]
[363814503,1748884246239,-420.0,0.00019863,2]
[363814504,1748884246248,-1345.36220916,0.00019951,2]
[363814505,1748884246257,-1271.0,0.00019953,2]
[363814506,1748884246266,-925.0,0.00019953,2]
[363814507,1748884246275,-588.0,0.00019953,2]
[363814508,1748884246285,-557.0,0.00019953,2]
[363814509,1748884246294,-201.495,0.00019953,2]
[363814510,1748884246304,-882.0,0.00019953,2]
[363814511,1748884246314,-7010.0,0.00019953,2]
[363814512,1748884246323,-4199.265,0.00019953,2]
[363814513,1748884246333,-1157.0,0.00019953,2]
[363814514,1748884246343,-173.85680973,0.00019973,2]
[363814515,1748884246354,-499.80788422,0.00019973,2]
[363814516,1748884246363,-500.0,0.00019973,2]
[363814517,1748884246372,-500.0,0.00019973,2]
[363814518,1748884246382,-500.0,0.00019973,2]
[363814519,1748884246391,-500.0,0.00019973,2]
[363814520,1748884246401,-500.0,0.00019973,2]
[363814521,1748884246413,-500.0,0.00019973,2]
[363814522,1748884246422,-2870.7361597,0.0001999,2]
[363814523,1748884246433,-500.0,0.00019998,2]
[363814525,1748884246442,-706.41,0.00019998,2]
[363814527,1748884246452,-1065.89594453,0.00019999,5]
[363814529,1748884246461,-5800.0,0.00019999,2]
[363814531,1748884246470,-500.0,0.00019999,2]
[363814533,1748884246479,-500.0,0.00019999,2]
[363814535,1748884246488,-909.52053106,0.00019999,2]
[363814537,1748884246500,-9847.87267424,0.00019999,2]
[363814539,1748884246511,-706.41,0.00019999,2]
[363814541,1748884246520,-706.41,0.00019999,2]
[363814543,1748884246529,-30263.1110465,0.00019999,2]
[363814545,1748884246538,-90306.52219654,0.0002,2]
[363814546,1748884246550,-1933.61625244,0.0002,2]
[363814547,1748884246571,-427.32,0.00019589,2]
[363814548,1748884246580,-272.68,0.0002,2]
[363814551,1748884329624,150.0,0.00023,30]
[363814552,1748884342472,569.0,0.00023,30]
[363814553,1748884344287,1441.62,0.000229,31]
[363814554,1748884344332,1441.62,0.000229,31]
[363814555,1748884344408,1441.62,0.000229,31]
[363814556,1748884344539,1441.62,0.000229,31]
[363814557,1748884344583,1441.62,0.000229,31]
[363814558,1748884344635,1441.62,0.000229,31]
[363814559,1748884344699,1441.62,0.000229,31]
[363814560,1748884344748,1441.62,0.000229,31]
[363814561,1748884344795,1441.62,0.000229,31]
[363814562,1748884345031,1441.62,0.000229,31]
[363814563,1748884345079,1441.62,0.000229,31]
[363814564,1748884345119,1441.62,0.000229,31]
[363814565,1748884345171,1441.62,0.000229,31]
[363814566,1748884345223,1441.62,0.000229,31]
[363814567,1748884345262,1441.62,0.000229,31]
[363814568,1748884345310,1441.62,0.000229,31]
[363814569,1748884348966,500.0,0.00023,30]
[363814570,1748884351014,150.0,0.00039902,120]